[Event "37th ECCC 2022"]
[Site "Mayrhofen"]
[Date "2022.10.04"]
[Round "2.70"]
[White "Franssila, Tommi"]
[Black "Weber, Daniel"]
[Result "*"]
[WhiteElo "2167"]
[BlackElo "2145"]
[Annotator "TA"]
[PlyCount "26"]
[EventDate "2022.10.03"]
[EventType "team-tourn"]
[EventCountry "AUT"]
[SourceTitle "playchess.com"]
[Source "ChessBase"]
[SourceQuality "1"]
[TimeControl "40/5400+30:1800+30"]

{[%evp 19,26,-15,-8,-30,-20,-22,-31,-58,-31]} 1. e4 {[%emt 0:00:14]} e6 {[%emt 0:00:09]} 2. d4 {[%emt 0:00:18]} d5 {[%emt 0:00:04]} 3. e5 {[%emt 0:00:36]} c5 {[%emt 0:00:05]} 4. c3 {[%emt 0:00:05]} Nc6 {[%emt 0:00:22]} 5. Nf3 {[%emt 0:00:16]} Qb6 {[%emt 0:01:39]} 6. a3 {[%emt 0:01:02]} c4 {[%emt 0:00:27]} 7. Nbd2 {[%emt 0:00:38]} Na5 {[%emt 0:00:10]} 8. g3 {[%emt 0:00:29]} Bd7 {[%emt 0:00:13]} 9. Bg2 {[%emt 0:00:35]} Ne7 {[%emt 0:00:27][%cal Bg8e7,Be7c8,Bc8b6][%mdl 32]} 10. O-O {[%emt 0:00:20]} h6 {[%emt 0:02:08] was the old line (10...Qc7).} 11. h4 {[%emt 0:05:27] C02: French: Advance Variation.} Nc8 {[%emt 0:00:45] [#]} 12. Ne1 $146 {[%emt 0:13:13]} ({Predecessor:} 12. h5 Be7 13. Ne1 Qc7 14. Qg4 Bf8 15. Nc2 Ne7 16. Ne3 O-O-O 17. Qh4 Kb8 18. Bh3 Bc8 {0-1 (79) Edouard,R (2664)-Bauer,C (2664) Cap d'Agde 2012}) 12... Qc7 {[%emt 0:00:48]} 13. f4 {[%emt 0:02:28]} Nb6 {[%emt 0:00:43] White did not feel at home in the position after the opening.  Weighted Error Value: White=0.17 (very precise) /Black=0.05 (flawless)} *

[Event "37th ECCC 2022"]
[Site "Mayrhofen"]
[Date "2022.10.04"]
[Round "2.70"]
[White "Vihinen, Teemu"]
[Black "Tabernig, Bernhard"]
[Result "0-1"]
[ECO "C02"]
[WhiteElo "2126"]
[BlackElo "2310"]
[Annotator "TA"]
[PlyCount "130"]
[EventDate "2022.10.03"]
[EventType "team-tourn"]
[EventCountry "AUT"]
[SourceTitle "playchess.com"]
[Source "ChessBase"]
[SourceQuality "1"]
[TimeControl "40/5400+30:1800+30"]

{[%evp 19,130,-17,-20,-30,-25,-23,-15,-63,-39,-58,-46,-68,-50,-66,-59,-64,-58,-81,-84,-75,-12,-78,28,-34,0,-42,-36,-31,-6,-39,31,14,45,37,21,0,178,177,416,424,397,179,197,195,186,163,387,372,372,294,268,291,284,305,402,345,408,389,881,931,897,929,918,886,846,802,812,428,428,428,428,428,428,428,428,404,433,419,356,197,188,185,192,193,195,18,22,22,20,0,0,0,0,1,20,20,20,20,123,-186,-205,-379,0,0,0,0,0,-77,-90,-106,-108,-1121,-1051]} 1. e4 {[%emt 0:00:14]} e6 {[%emt 0:00:09]} 2. d4 {[%emt 0:00:18]} d5 {[%emt 0:00:04]} 3. e5 {[%emt 0:00:36]} c5 {[%emt 0:00:05]} 4. c3 {[%emt 0:00:05]} Nc6 {[%emt 0:00:22]} 5. Nf3 {[%emt 0:00:16]} Qb6 {[%emt 0:01:39]} 6. a3 {[%emt 0:01:02]} c4 {[%emt 0:00:27]} 7. Nbd2 {[%emt 0:00:38]} Na5 {[%emt 0:00:10]} 8. g3 {[%emt 0:00:29]} Bd7 {[%emt 0:00:13]} 9. Bg2 {[%emt 0:00:35]} Ne7 {[%emt 0:00:27][%cal Bg8e7,Be7c8,Bc8b6][%mdl 32]} 10. O-O {[%emt 0:00:20]} h6 {[%emt 0:02:08] is the legacy move (10...Qc7).} 11. h4 {[%emt 0:05:27] C02: French: Advance Variation.} Nc8 {[%emt 0:00:45] [#]} 12. Ne1 $146 {[%emt 0:13:13]} ({Predecessor:} 12. h5 Be7 13. Ne1 Qc7 14. Qg4 Bf8 15. Nc2 Ne7 16. Ne3 O-O-O 17. Qh4 Kb8 18. Bh3 Bc8 {0-1 (79) Edouard,R (2664)-Bauer,C (2664) Cap d'Agde 2012}) 12... Qc7 {[%emt 0:00:48]} 13. f4 {[%emt 0:02:28]} (13. Nef3 $11) 13... Nb6 {[%emt 0:00:43]} 14. h5 {[%emt 0:15:30]} O-O-O {[%emt 0:04:01]} 15. Bh3 {[%emt 0:06:47]} g6 {[%emt 0:13:14]} 16. Ng2 {[%emt 0:03:43]} Be7 {[%emt 0:00:47]} 17. Ne3 {[%emt 0:04:45]} Rdg8 {[%emt 0:03:33] ...gxh5 is the strong threat.} 18. Kh2 {[%emt 0:05:17]} Kb8 {[%emt 0:05:04]} 19. Rb1 {[%emt 0:02:34]} Qd8 {[%emt 0:07:35]} ({Black should play} 19... gxh5 $17 {White must now prevent ...h4.} 20. Qxh5 f5) 20. Qe2 {[%emt 0:05:10]} (20. hxg6 $11 {remains equal.} fxg6 21. b4 cxb3 22. Nxb3 Nxb3 23. Qxb3) 20... Ba4 {[%emt 0:01:09]} (20... gxh5 $17 21. Qxh5 f5) 21. Nf3 {[%emt 0:03:47]} ({White should try} 21. hxg6 $11 Rxg6 22. f5 exf5 23. Bxf5) 21... Bd7 {[%emt 0:06:38]} 22. Bd2 {[%emt 0:02:14][%cal Bc1d2,Bd2e1,Be1f2][%mdl 32]} Nb3 {[%emt 0:00:58]} 23. Be1 {[%emt 0:02:25]} Na4 {[%emt 0:01:09]} (23... gxh5 {with more complications.} 24. f5 exf5 25. Nxf5 Be6) 24. Qc2 {[%emt 0:06:35]} b5 {[%emt 0:01:14]} (24... gxh5 $15 25. Bf2 Nb6) 25. g4 $14 {[%emt 0:02:42]} Kb7 {[%emt 0:07:47]} 26. Bf2 {[%emt 0:00:43]} Nb6 {[%emt 0:01:16]} 27. f5 {[%emt 0:01:10][%cal Rh5g6]} Qc8 $2 {[%emt 0:04:39]} (27... Bg5 $11) 28. hxg6 $18 {[%emt 0:06:02]} exf5 $2 {[%emt 0:00:42]} (28... fxg6 29. f6 (29. fxg6 Be8 $11) 29... Bd8) 29. Nxf5 {[%emt 0:03:47]} (29. gxf7 fxg4 30. fxg8=N Rxg8 $18) 29... Qf8 {[%emt 0:05:19]} 30. g7 {[%emt 0:01:17]} (30. Bh4 $142 Bxf5 31. gxf5 Bxh4 32. Nxh4) 30... Rxg7 {[%emt 0:00:04]} 31. Nxg7 {[%emt 0:00:04]} Qxg7 {[%emt 0:00:05]} 32. Bh4 {[%emt 0:02:02]} h5 $2 {[%emt 0:00:21]} (32... Bg5 {keeps fighting.} 33. Qg2 Be6) 33. g5 {[%emt 0:00:54]} (33. Bxe7 hxg4 34. Ng5 Be6 $18) 33... Bg4 {[%emt 0:00:47]} 34. Qg2 {[%emt 0:00:53]} Qg6 {[%emt 0:01:45]} 35. Bxg4 {[%emt 0:01:23]} hxg4 {[%emt 0:00:05]} 36. Qxg4 {[%emt 0:00:08]} Qc2+ {[%emt 0:00:27]} 37. Qg2 {[%emt 0:00:29]} Qe4 {[%emt 0:00:15]} 38. Rbe1 {[%emt 0:01:20][%cal Bb1e1,Be1e2,Be2g2][%mdl 32]} Rxh4+ {[%emt 0:00:21]} (38... Qg6 39. Kg1 Rg8) 39. Nxh4 {[%emt 0:00:14]} Qxh4+ {[%emt 0:00:04]} 40. Qh3 {[%emt 0:00:47]} Qxg5 {[%emt 0:02:55]} 41. Re2 {[%emt 0:02:49]} (41. Rxf7 Qd2+ 42. Qg2 Qxe1 $11) 41... Qg8 {[%emt 0:18:16]} 42. Rg2 {[%emt 0:03:37]} Qe8 {[%emt 0:00:29]} 43. Qh7 {[%emt 0:00:33]} Na5 {[%emt 0:00:30]} 44. Rxf7 {[%emt 0:04:38]} Nc6 {[%emt 0:00:15]} 45. Rgg7 {[%emt 0:00:37][%cal Rf7e7]} Nc8 {[%emt 0:00:36]} 46. Kg1 {[%emt 0:09:22]} Qd7 {[%emt 0:00:26]} 47. Qg6 {[%emt 0:02:29]} a5 {[%emt 0:00:44]} 48. Qf5 {[%emt 0:01:46]} Kc7 {[%emt 0:01:30]} 49. e6 {[%emt 0:00:59]} (49. Rf6 $142) 49... Qd6 {[%emt 0:00:15]} 50. Rf8 {[%emt 0:01:39]} b4 {[%emt 0:02:08]} 51. axb4 {[%emt 0:00:16]} axb4 {[%emt 0:00:01]} 52. Re8 $2 {[%emt 0:00:27]} (52. Kg2 $1 $18) 52... bxc3 $11 {[%emt 0:00:35]} 53. bxc3 {[%emt 0:00:06] aiming for Rh8.} Qa3 $1 {[%emt 0:00:33]} 54. Qf4+ {[%emt 0:02:08]} Kb7 $1 55. Qe3 {[%emt 0:02:44]} Qa1+ {[%emt 0:02:54]} 56. Kg2 {[%emt 0:00:55]} Qb2+ {[%emt 0:00:07]} 57. Kh3 {[%emt 0:00:14]} Qb1 {[%emt 0:00:12]} 58. Qf3 {[%emt 0:00:29][%cal Oe8c8] Hoping for Rxc8!} Qc1 {[%emt 0:00:25]} (58... Qe1 $1 $11) 59. Rgg8 $2 {[%emt 0:01:29][%mdl 8192]} (59. Rh8 $16 {is forced if you want to stay better.}) 59... Nd6 $1 $19 {[%emt 0:02:58]} 60. Ra8 $2 {[%emt 0:01:37]} ({Wrong is} 60. Qxd5 $2 Nxe8 61. Rxe8 Qh6+ 62. Kg3 Qg6+ 63. Kf4 Qh6+ 64. Kg3 Qg6+ 65. Kf4 Qxe8 $19) (60. Ref8) 60... Qh6+ $2 {[%emt 0:00:13] The board is on fire.} ({Better is} 60... Ne4 $19 61. Kg2 Qc2+ 62. Kg1 Bd6) 61. Kg2 $11 {[%emt 0:00:11]} Qxe6 {[%emt 0:00:23]} 62. Qg3 {[%emt 0:01:11]} Qe2+ {[%emt 0:03:38]} 63. Kh3 {[%emt 0:00:40]} ({Don't go for} 63. Qf2 $2 Qxf2+ 64. Kxf2 Ne4+ 65. Ke3 Bg5+ 66. Kf3 Nxc3 $19) (63. Kg1 $1 $11) 63... Qd3 $17 {[%emt 0:00:37][%mdl 1024] Threatens to win with ...Ne4. Black has strong compensation.} 64. Ra2 {[%emt 0:01:03] [#]} Qb1 {[%emt 0:03:15]} 65. Qg2 {[%emt 0:00:26][%mdl 8192]} ({Not} 65. Rg7 $2 Nf5 66. Qg2 Qd3+ 67. Rg3 Ne3 68. Rb2+ {[#]} Nb4 $1 {[%mdl 512]} 69. Rxe3 Qxe3+ 70. Qg3 Qc1 $19) (65. Re2 $17) 65... Qh7+ {[%emt 0:00:08] Never resign too early!  Weighted Error Value: White=0.53/Black=0.34} 0-1

[Event "37th ECCC 2022"]
[Site "Mayrhofen"]
[Date "2022.10.04"]
[Round "2.71"]
[White "Schiestl, Josef"]
[Black "Tahkavuori, Tapani"]
[Result "1/2-1/2"]
[ECO "A65"]
[WhiteElo "2123"]
[BlackElo "2070"]
[Annotator "TA"]
[PlyCount "71"]
[EventDate "2022.10.03"]
[EventType "team-tourn"]
[EventCountry "AUT"]
[SourceTitle "playchess.com"]
[Source "ChessBase"]
[SourceQuality "1"]
[TimeControl "40/5400+30:1800+30"]

{[%evp 25,71,77,97,89,159,8,84,83,72,75,97,66,203,195,203,208,215,227,191,119,114,0,0,0,0,0,93,119,245,128,127,88,120,63,71,48,497,492,485,281,281,281,281,250,280,0,237,0]} 1. d4 {[%emt 0:00:07]} Nf6 {[%emt 0:00:10]} 2. c4 {[%emt 0:00:05]} c5 {[%emt 0:00:09]} 3. d5 {[%emt 0:00:09]} e6 {[%emt 0:00:06]} 4. Nc3 {[%emt 0:00:15]} exd5 {[%emt 0:00:12]} 5. cxd5 {[%emt 0:00:03]} d6 {[%emt 0:00:10]} 6. e4 {[%emt 0:00:23]} g6 {[%emt 0:00:09]} 7. Bd3 {[%emt 0:00:47]} Bg7 {[%emt 0:00:14]} 8. h3 {[%emt 0:00:15]} O-O {[%emt 0:00:42]} 9. Nf3 {[%emt 0:00:55]} b5 {[%emt 0:06:41]} 10. Nxb5 {[%emt 0:17:26]} Nxe4 {[%emt 0:10:54]} 11. Bxe4 {[%emt 0:13:29]} Re8 {[%emt 0:00:18]} 12. Ng5 {[%emt 0:05:41]} Qa5+ {[%emt 0:31:00]} 13. Nc3 {[%emt 0:01:49]} Ba6 {[%emt 0:00:32] aiming for ...h6.} 14. Bd2 {[%emt 0:22:06] Threatens to win with Qf3. A70: Modern Benoni: 6 e4 g6 7 Nf3.} (14. Qf3 $6 f5 $11) 14... Nd7 {[%emt 0:06:24]} 15. f4 {[%emt 0:04:07] [#] Prevents Ne5.} (15. Qf3 Ne5 16. Qg3 Rab8 $17) (15. Qc2 $1 $16) 15... h6 $146 {[%emt 0:07:28] [#]} (15... Rab8 $1 $11 16. Qc2 f5) ({Predecessor:} 15... Rab8 16. Qc2 f5 17. Ne6 fxe4 18. Nxe4 Qb5 19. Bc3 Qc4 20. O-O-O Bh6 21. g3 Rb6 22. a3 Qe2 23. Rhe1 Qf3 24. N6g5 Bxg5 25. Nxg5 Rxe1 26. Nxf3 {1-0 (26) Movsziszian,K (2440)-Voigt,M (2280) Hamburg 1992}) 16. Ne6 $1 $16 {[%emt 0:09:13] White is better.} fxe6 {[%emt 0:21:09]} 17. dxe6 {[%emt 0:03:24]} (17. Bxg6 Re7 $15) 17... Rxe6 {[%emt 0:00:06] White must now prevent ...Qb4.} 18. Kf2 $1 {[%emt 0:00:29]} Bd4+ {[%emt 0:02:40]} (18... Rb8 $1 $14 19. Bd5 Nf8) 19. Kg3 $18 {[%emt 0:02:01]} Rae8 {[%emt 0:00:22]} 20. Bd5 {[%emt 0:01:19] Hoping for Re1.} Nf6 {[%emt 0:00:05]} 21. Bxe6+ {[%emt 0:00:21]} Rxe6 {[%emt 0:00:05]} 22. Qb3 {[%emt 0:07:05] Inhibits d5.} (22. Re1 $18 Rxe1 23. Qxe1 (23. Bxe1 Qc7 $16)) 22... c4 $16 {[%emt 0:01:05]} 23. Qb8+ {[%emt 0:01:06]} ({White should try} 23. Qd1 $16) 23... Re8 $1 $11 {[%emt 0:04:01]} 24. Qxd6 {[%emt 0:02:40]} Bxc3 {[%emt 0:00:39] A strong pair of Bishops.} 25. Qxf6 {[%emt 0:00:09][%mdl 64] Pin, Double Attack. The board is on fire.} Re3+ {[%emt 0:02:58]} 26. Kh2 $1 $16 {[%emt 0:01:09]} (26. Kf2 $6 Bxd2 27. Rhd1 (27. Qxg6+ Kf8 $11) 27... Qd5 28. Qxg6+ Kf8 29. Qxh6+ (29. Qxa6 Re2+ 30. Kg3 Bxf4+ 31. Kg4 Qxg2+ 32. Kxf4 Qe4+ 33. Kg3 Rg2#) 29... Kf7 30. Qh7+ (30. Qxa6 Re2+ 31. Kg3 Bxf4+ 32. Kg4 Qg5+ 33. Kf3 Qg3+ 34. Kxe2 Qxg2+ 35. Ke1 Bg3#) 30... Kf8 31. Qh8+ (31. Qh6+ Ke8 $11) 31... Kf7 32. Qh7+ Kf8 33. Qh8+ (33. Qh6+ Ke8 $11) 33... Kf7 34. Qh7+ $11) 26... Bxd2 {[%emt 0:01:24]} (26... Bxf6 $16 27. Bxa5 Bxb2) 27. Qxg6+ {[%emt 0:01:07]} (27. Rhd1 $18) 27... Kf8 {[%emt 0:00:31]} 28. Qxh6+ {[%emt 0:03:10]} Ke7 {[%emt 0:00:06]} 29. Qg7+ {[%emt 0:00:27]} (29. Rhd1 $16 {Qg7+ is the strong threat.} Rd3 30. Rxd2 $1 {[%mdl 512]} (30. Qg7+ Kd8 $14) 30... Qxd2 31. Qxa6 Qxf4+ 32. Kg1 (32. Kh1 Rxh3+ 33. gxh3 Qf3+ 34. Kh2 Qf2+ 35. Kh1 Qf3+ 36. Kh2 Qf2+ 37. Kh1 Qf3+ $11) 32... Qd4+ 33. Kf1 (33. Kh1 Rxh3+ 34. gxh3 Qd5+ 35. Kh2 Qe5+ 36. Kg2 Qd5+ 37. Kg3 Qg5+ 38. Kf2 Qf4+ 39. Kg2 Qg5+ 40. Kh1 Qd5+ 41. Kh2 Qe5+ 42. Kh1 Qd5+ $11) 33... Rd1+ 34. Rxd1 Qxd1+ 35. Kf2 Qd2+ 36. Kf3 Qd5+ 37. Kg4 Qxg2+ 38. Kf4 Qh2+ 39. Kg5 Qg2+ 40. Kh6 Qxh3+ 41. Kg5) 29... Kd6 $14 {[%emt 0:00:43]} 30. Rad1 {[%emt 0:01:13]} Qd5 {[%emt 0:02:08][%mdl 8192] Prevents Qd4.} ({Better is} 30... Rd3 $14 31. Rhf1 Kc6) 31. Qf6+ $18 {[%emt 0:01:06]} Kc7 {[%emt 0:01:22]} 32. Qxa6 {[%emt 0:00:33]} (32. Rxd2 $142 Qxd2 33. Qxa6) 32... Re2 {[%emt 0:01:05][%csl Gd5][%cal Re2g2]} 33. Qxa7+ {[%emt 0:00:34]} Kc8 {[%emt 0:00:07][%csl Gd5][%cal Re2g2]} 34. Qa6+ {[%emt 0:00:38]} Kc7 {[%emt 0:00:05][%csl Gd5][%cal Re2g2]} 35. Qa7+ {[%emt 0:01:40]} Kc8 {[%emt 0:00:01][%csl Gd5][%cal Re2g2] [#]} 36. Qa6+ $2 {Weighted Error Value: White=0.69/Black=0.33} (36. Rhg1 $1 $18 Bxf4+ 37. Kh1 Rxg2 38. Rxg2 (38. Rxd5 $2 Rh2#) 38... Qxd1+ 39. Qg1) 1/2-1/2

[Event "37th ECCC 2022"]
[Site "Mayrhofen"]
[Date "2022.10.04"]
[Round "2.71"]
[White "Noetzel, Felix"]
[Black "Hamalainen, Sami"]
[Result "*"]
[WhiteElo "2093"]
[BlackElo "2126"]
[Annotator "TA"]
[PlyCount "41"]
[EventDate "2022.10.03"]
[EventType "team-tourn"]
[EventCountry "AUT"]
[SourceTitle "playchess.com"]
[Source "ChessBase"]
[SourceQuality "1"]
[TimeControl "40/5400+30:1800+30"]

{[%evp 16,19,40,20,15,6]} 1. d4 {[%emt 0:00:07]} Nf6 {[%emt 0:00:10]} 2. c4 {[%emt 0:00:05]} c5 {[%emt 0:00:09]} 3. d5 {[%emt 0:00:09]} e6 {[%emt 0:00:06]} 4. Nc3 {[%emt 0:00:15]} exd5 {[%emt 0:00:12]} 5. cxd5 {[%emt 0:00:03]} d6 {[%emt 0:00:10]} 6. e4 {[%emt 0:00:23]} g6 {[%emt 0:00:09]} 7. Bd3 {[%emt 0:00:47]} Bg7 {[%emt 0:00:14]} 8. h3 {[%emt 0:00:15] seems to push 8.Nge2 aside.} O-O {[%emt 0:00:42]} 9. Nf3 {[%emt 0:00:55]} b5 {[%emt 0:06:41] A70: Modern Benoni: 6 e4 g6 7 Nf3.} 10. Nxb5 {[%emt 0:17:26] [#] Not much happened in this game.} {Predecessor:} Re8 $146 11. O-O Nxe4 12. Bxe4 Rxe4 13. Nc3 Re8 14. Re1 Rxe1+ 15. Qxe1 Nd7 16. Bf4 Nf6 17. Qd2 Bb7 18. Re1 Qd7 19. Ng5 Re8 20. Nge4 Nxe4 21. Nxe4 {½-½ (45) Giri,A (2764)-Fier,A (2562) Chess.com INT 2020} *

[Event "37th ECCC 2022"]
[Site "Mayrhofen"]
[Date "2022.10.04"]
[Round "2.72"]
[White "Hartio, Ilkka"]
[Black "Boeddeker, Henry"]
[Result "*"]
[WhiteElo "1965"]
[BlackElo "2130"]
[Annotator "TA"]
[PlyCount "38"]
[EventDate "2022.10.03"]
[EventType "team-tourn"]
[EventCountry "AUT"]
[SourceTitle "playchess.com"]
[Source "ChessBase"]
[SourceQuality "1"]
[TimeControl "40/5400+30:1800+30"]

{[%evp 17,24,53,41,43,53,43,60,77,34]} 1. d4 {[%emt 0:00:04]} Nf6 {[%emt 0:00:07]} 2. c4 {[%emt 0:00:07]} g6 {[%emt 0:00:04]} 3. Nc3 {[%emt 0:00:06]} Bg7 {[%emt 0:00:05]} 4. e4 {[%emt 0:00:07]} d6 {[%emt 0:00:06]} 5. f3 {[%emt 0:00:08]} O-O {[%emt 0:00:14]} 6. Be3 {[%emt 0:00:13]} c5 {[%emt 0:00:09]} 7. Nge2 {[%emt 0:00:13][%cal Bg1e2,Be2g3,Bg3f1][%mdl 32]} Nc6 {[%emt 0:01:34][%cal Bb8c6,Bc6e5,Be5c4][%mdl 32]} 8. d5 {[%emt 0:00:21]} Ne5 {[%emt 0:00:07]} 9. Ng3 {[%emt 0:00:21]} h5 {[%emt 0:03:35] [#] Hoping for ...h4.} 10. Be2 {[%emt 0:01:10] E81: King's Indian: Sämisch: 6th move deviations (including 6 Be3 c6).} h4 {[%emt 0:16:25]} 11. Nf1 {[%emt 0:00:09]} e6 {[%emt 0:00:26]} 12. f4 {[%emt 0:00:45]} Nxc4 {[%emt 0:04:08] [#] Black got outplayed after the opening.  Weighted Error Value: White=0.00 (flawless) /Black=0.06 (flawless)} {Predecessor:} 13. Bxc4 $146 b5 14. Bxb5 exd5 15. exd5 h3 16. Qd2 Rb8 17. Bc6 Ne4 18. Nxe4 Rxb2 19. Qc1 hxg2 {0-1 (27) Hess,R (2591)-Kollars,D (2585) Chess.com INT 2020} *

[Event "37th ECCC 2022"]
[Site "Mayrhofen"]
[Date "2022.10.04"]
[Round "2.72"]
[White "Buselli, Daniel"]
[Black "Spindelberger, Paul"]
[Result "1-0"]
[ECO "E81"]
[WhiteElo "1667"]
[BlackElo "1983"]
[Annotator "TA"]
[PlyCount "77"]
[EventDate "2022.10.03"]
[EventType "team-tourn"]
[EventCountry "AUT"]
[SourceTitle "playchess.com"]
[Source "ChessBase"]
[SourceQuality "1"]
[TimeControl "40/5400+30:1800+30"]

{[%evp 17,77,39,40,41,66,58,65,59,51,60,91,92,250,227,311,279,287,230,354,350,607,616,606,601,736,728,710,744,724,402,391,391,391,380,387,389,390,385,503,486,537,448,440,424,433,422,708,704,714,700,679,669,929,929,913,885,798,774,1025,1014,5828,5675]} 1. d4 {[%emt 0:00:04]} Nf6 {[%emt 0:00:07]} 2. c4 {[%emt 0:00:07]} g6 {[%emt 0:00:04]} 3. Nc3 {[%emt 0:00:06]} Bg7 {[%emt 0:00:05]} 4. e4 {[%emt 0:00:07]} d6 {[%emt 0:00:06]} 5. f3 {[%emt 0:00:08]} O-O {[%emt 0:00:14]} 6. Be3 {[%emt 0:00:13]} c5 {[%emt 0:00:09]} 7. Nge2 {[%emt 0:00:13]} Nc6 {[%emt 0:01:34]} 8. d5 {[%emt 0:00:21]} Ne5 {[%emt 0:00:07]} 9. Ng3 {[%emt 0:00:21]} h5 {[%emt 0:03:35] [#] aiming for ...h4.} 10. Be2 {[%emt 0:01:10] E81: King's Indian: Sämisch: 6th move deviations (including 6 Be3 c6).} h4 {[%emt 0:16:25]} 11. Nf1 {[%emt 0:00:09]} e6 {[%emt 0:00:26]} 12. f4 {[%emt 0:00:45] White is slightly better.} Nxc4 {[%emt 0:04:08]} 13. Bxc4 {[%emt 0:03:49] [#] dxe6 is the strong threat.} b5 $1 {[%emt 0:01:03]} 14. Bxb5 {[%emt 0:19:58][%cal Bc4b5,Bb5c6,Bc6a8][%mdl 32] [#] Strongly threatening dxe6.} Qa5 $146 {[%emt 0:02:16]} (14... exd5 $16 {is a better defense.} 15. exd5 Rb8) ({Predecessor:} 14... exd5 15. exd5 h3 16. Qd2 Rb8 17. Bc6 Ne4 18. Nxe4 Rxb2 19. Qc1 hxg2 20. Rg1 gxf1=Q+ 21. Rxf1 {0-1 (27) Hess,R (2591)-Kollars,D (2585) Chess.com INT 2020}) 15. Qa4 {[%emt 0:06:13]} Qb4 {[%emt 0:07:21]} 16. Qxb4 {[%emt 0:02:50]} cxb4 {[%emt 0:00:07]} 17. Nd1 {[%emt 0:00:16] Hoping for Bc6.} Nxe4 {[%emt 0:00:31]} (17... Bb7 $142 18. dxe6 fxe6) 18. Bc6 $18 {[%emt 0:01:09]} exd5 $2 {[%emt 0:17:32]} (18... Rb8 19. Bxa7 Rb7) 19. Bxa8 {[%emt 0:09:27]} Be6 {[%emt 0:02:29]} 20. Bc6 {[%emt 0:00:16]} f5 {[%emt 0:00:50]} 21. Nd2 {[%emt 0:04:42]} d4 {[%emt 0:05:35]} 22. Nxe4 {[%emt 0:03:31]} fxe4 {[%emt 0:00:28]} 23. O-O {[%emt 0:00:53]} dxe3 {[%emt 0:05:51]} 24. Nxe3 {[%emt 0:00:50]} Bd4 {[%emt 0:02:33]} 25. Rfe1 {[%emt 0:02:17]} Rxf4 {[%emt 0:03:43]} 26. Rad1 {[%emt 0:04:07]} Bc5 {[%emt 0:00:59]} 27. b3 {[%emt 0:04:26]} h3 {[%emt 0:13:49]} 28. Bd5 {[%emt 0:10:34] White is clearly winning.} Kf7 {[%emt 0:01:36]} 29. Bxe6+ {[%emt 0:04:14]} Kxe6 {[%emt 0:00:06]} 30. Kh1 {[%emt 0:06:26]} Rf2 {[%emt 0:03:21]} 31. gxh3 {[%emt 0:00:11]} Bxe3 {[%emt 0:02:07]} (31... Rxa2 $142 32. Ng4 d5) 32. Rxe3 {[%emt 0:00:11]} d5 {[%emt 0:00:05]} 33. Kg1 {[%emt 0:02:33]} Rxa2 {[%emt 0:02:26]} 34. Rg3 {[%emt 0:01:33]} Ra5 {[%emt 0:03:11]} 35. Rxg6+ {[%emt 0:00:48]} Kf5 {[%emt 0:00:26]} 36. Rd6 {[%emt 0:00:17]} Ke5 {[%emt 0:00:13]} 37. Rd8 {[%emt 0:00:11]} e3 {[%emt 0:00:17]} 38. Re8+ {[%emt 0:00:10]} Kf4 {[%emt 0:00:30]} 39. Rf1+ {[%emt 0:00:09] White took control after the opening.  Weighted Error Value: White=0.38/Black=0.48} 1-0

[Event "37th ECCC 2022"]
[Site "Mayrhofen"]
[Date "2022.10.04"]
[Round "2.73"]
[White "Maiwald, Jens-Uwe"]
[Black "Kokkila, Tero"]
[Result "*"]
[WhiteElo "2441"]
[BlackElo "2230"]
[Annotator "TA"]
[PlyCount "35"]
[EventDate "2022.10.03"]
[EventType "team-tourn"]
[EventCountry "AUT"]
[SourceTitle "playchess.com"]
[Source "ChessBase"]
[SourceQuality "1"]
[TimeControl "40/5400+30:1800+30"]

{[%evp 17,22,9,25,22,30,8,27]} 1. d4 {[%emt 0:00:03]} Nf6 {[%emt 0:00:19]} 2. c4 {[%emt 0:00:21]} e6 {[%emt 0:00:11]} 3. Nf3 {[%emt 0:00:27]} d5 {[%emt 0:00:25]} 4. g3 {[%emt 0:00:31]} Bb4+ {[%emt 0:00:49]} 5. Bd2 {[%emt 0:00:20]} Be7 {[%emt 0:00:11]} 6. Bg2 {[%emt 0:00:24]} O-O {[%emt 0:00:10]} 7. O-O {[%emt 0:00:26]} Nbd7 {[%emt 0:00:22]} 8. Qc2 {[%emt 0:09:24]} c6 {[%emt 0:00:30]} 9. Rd1 {[%emt 0:00:59]} Ne4 {[%emt 0:00:48]} 10. Nc3 {[%emt 0:03:08] E11: Bogo-Indian.} f5 {[%emt 0:01:07]} 11. Be1 {[%emt 0:00:55]} Bf6 {[%emt 0:12:07] [#] Not much happened in this game.  Weighted Error Value: White=0.11 (very precise) /Black=0.12 (very precise)} {Predecessor:} 12. b4 $146 g5 13. b5 Qe7 14. bxc6 bxc6 15. cxd5 cxd5 16. Rab1 Ba6 17. Nxe4 fxe4 18. Bb4 {½-½ (41) Podolchenko,E (2398)-Ladva,O (2530) Minsk 2017} *